fUST/lending_fUST_20251114
["ID","MTS","AMOUNT","RATE_DAILY","PERIOD"]
[393957907,1763129438502,-243.50551004,0.000332,117]
[393957909,1763129438511,-168.0,0.00033797,2]
[393957912,1763129438521,-168.0,0.00034079,2]
[393957914,1763129438530,-150.0,0.00034366,2]
[393957916,1763129438540,-250.0,0.00034366,2]
[393957917,1763129438550,-168.0,0.00034378,2]
[393957919,1763129438560,-265.446,0.00034448,2]
[393957921,1763129438573,-413.0,0.00034448,2]
[393957923,1763129438584,-168.0,0.00034891,2]
[393957925,1763129438595,-600.0,0.00035066,30]
[393957927,1763129438604,-160.42,0.000353,7]
[393957929,1763129438613,-1696.07,0.000353,14]
[393957931,1763129438622,-160.0,0.0003554,2]
[393957933,1763129438631,-168.0,0.00035594,2]
[393957935,1763129438642,-440.63,0.00035875,2]
[393957937,1763129438655,-412.15960759,0.00035918,3]
[393957939,1763129438669,-16980.0,0.00035918,3]
[393957942,1763129438681,-4262.24655221,0.00035918,3]
[393957944,1763129438690,-966.697097,0.00035928,2]
[393957946,1763129438702,-260.0,0.00036088,2]
[393957947,1763129438711,-243.50551,0.00036379,120]
[393957950,1763129438721,-168.0,0.0003651,2]
[393957952,1763129438731,-168.0,0.00036682,2]
[393957953,1763129438740,-208.55304131,0.00037497,2]
[393957955,1763129438749,-196.60245559,0.00037497,2]
[393957957,1763129438758,-160.0,0.00037698,2]
[393957959,1763129438767,-168.0,0.00038339,2]
[393957961,1763129438777,-421.0,0.00038572,90]
[393957963,1763129438787,-660.95,0.00038865,2]
[393957965,1763129438796,-3700.3,0.00039099,2]
[393957967,1763129438806,-1696.07,0.000391,14]
[393957969,1763129438815,-168.0,0.00039137,7]
[393957971,1763129438825,-168.0,0.00039383,2]
[393957973,1763129438834,-168.0,0.00039708,7]
[393957975,1763129438844,-168.0,0.00040289,2]
[393957976,1763129438853,-168.0,0.00040321,2]
[393957979,1763129438864,-168.0,0.00040435,7]
[393957980,1763129438873,-168.0,0.00040761,2]
[393957982,1763129438883,-168.0,0.00041228,2]
[393957984,1763129438892,-168.0,0.00041356,120]
[393957986,1763129438903,-168.0,0.00041499,2]
[393957988,1763129438912,-741.88729665,0.00041763,4]
[393957990,1763129438922,-881.26,0.00041855,2]
[393957992,1763129438934,-8144.42593765,0.00042499,3]
[393957994,1763129438944,-250.0,0.00042509,2]
[393957996,1763129438953,-500.0,0.00042509,2]
[393957998,1763129438962,-750.0,0.00042509,2]
[393958000,1763129438972,-1000.0,0.00042509,2]
[393958002,1763129438982,-1250.0,0.00042509,2]
[393958004,1763129438991,-1430.0628927,0.00042509,2]
[393958006,1763129439002,-2234.47326985,0.00042509,2]
[393958008,1763129439011,-3217.64150859,0.00042509,2]
[393958010,1763129439021,-4379.56760891,0.00042509,2]
[393958012,1763129439031,-187.01134635,0.00042525,2]
[393958014,1763129439041,-446.89465397,0.00042525,2]
[393958016,1763129439050,-804.41037715,0.00042525,2]
[393958017,1763129439059,-3700.3,0.000432,2]
[393958019,1763129439068,-1500.0,0.000432,2]
[393958021,1763129439078,-21654.4061598,0.000432,3]
[393958023,1763129439088,-8144.42593765,0.000432,3]
[393958025,1763129439097,-3700.3,0.00043209,2]
[393958027,1763129439106,-1750.0,0.00043209,2]
[393958029,1763129439116,-1611.45836329,0.00043209,2]
[393958031,1763129439125,-21654.4061598,0.0004321,3]
[393958033,1763129439135,-8144.42593765,0.0004321,3]
[393958035,1763129439145,-3700.3,0.00043219,2]
[393958037,1763129439158,-3700.3,0.00043219,2]
[393958039,1763129439168,-48692.6564,0.0004322,30]
[393958041,1763129439178,-400.38245665,0.0004322,30]
[393958043,1763129439187,-3700.3,0.00043299,2]
[393958045,1763129439203,-1696.07,0.000446,14]
[393958047,1763129439212,-1101.58,0.00044844,2]
[393958049,1763129439222,-332.9471943,0.00046615,30]
[393958051,1763129439233,-800.0628718,0.000468,30]
[393958053,1763129439245,-507.34450715,0.00047731,60]
[393958055,1763129439255,-1321.89,0.00047834,2]
[393958057,1763129439265,-3333.41087922,0.00047842,28]
[393958059,1763129439275,-10000.0,0.00048145,2]
[393958061,1763129439285,-243.50551,0.0004906,120]
[393958063,1763129439303,-152.973382,0.00049209,10]
[393958065,1763129439313,-8144.42593765,0.00049228,4]
[393958067,1763129439324,-3962.85078809,0.00049238,4]
[393958192,1763129440576,-1261.70537677,0.00049238,4]
[393958194,1763129440587,-485.74918234,0.00049238,4]
[393958312,1763129449082,-289.63971563,0.0002905,2]
[393958313,1763129449092,-289.63971563,0.00031242,2]
[393958314,1763129449102,-768.79697601,0.00049238,4]
[393958315,1763129477437,925.08,0.00023891,2]
[393958316,1763129477624,925.08,0.000239,2]
[393958317,1763129477933,925.08,0.000239,2]
[393958318,1763129478184,925.08,0.000239,2]
[393958319,1763129478430,925.08,0.000239,2]
[393958320,1763129478675,925.08,0.000239,2]
[393958321,1763129478914,925.08,0.000239,2]
[393958322,1763129479149,925.08,0.000239,2]
[393958323,1763129479393,925.08,0.000239,2]
[393958324,1763129479653,925.08,0.000239,2]
[393958325,1763129479888,925.08,0.00023901,2]
[393958326,1763129480158,925.08,0.00023901,2]
[393958327,1763129480442,925.08,0.00023902,2]
[393958328,1763129480723,925.08,0.00024449,2]
[393958329,1763129480975,925.08,0.00024898,2]
[393958330,1763129481555,925.08,0.00024899,2]
[393958331,1763129481795,925.08,0.00024899,2]
[393958332,1763129482076,925.08,0.00024899,2]
[393958333,1763129482377,925.08,0.00024899,2]
[393958334,1763129482701,925.08,0.00024899,2]
[393958335,1763129482889,730.96954814,0.00024899,2]
[393958336,1763129482915,194.11045186,0.00024899,2]
[393958337,1763129483135,925.08,0.00024899,2]
[393958338,1763129483407,925.08,0.00024899,2]
[393958339,1763129483674,925.08498138,0.00024899,2]
[393958411,1763129631249,168.181243,0.00023047,2]
[393958412,1763129631492,168.181243,0.00023047,120]
[393958420,1763129674592,1000.0,0.00025,2]
[393958421,1763129687297,1000.0,0.00025,2]
[393958423,1763129726105,700.0,0.00025,2]
[393959290,1763130118490,377.16256094,0.00039563,5]
[393959292,1763130120823,199.37,0.00032877,120]
[393959567,1763130452802,300.0,0.000324,120]
[393959571,1763130477997,282.0,0.00039563,120]
[393959575,1763130503517,287.93,0.00039563,120]
[393959576,1763130508638,683.25856123,0.00022,5]
[393959592,1763130520664,149.999999,0.00039563,14]
[393959593,1763130521828,181.90417322,0.00039563,120]
[393959613,1763130543410,700.0,0.000324,120]
[393959614,1763130544475,206.96,0.00032877,120]
[393959677,1763130632774,-150.0,0.00025291,2]
[393959678,1763130632784,-1650.40834166,0.00026,30]
[393959679,1763130632794,-177.0,0.00027291,2]
[393959680,1763130632804,-171.59165834,0.00028505,2]
[393959681,1763130632819,-48.05746537,0.00028505,2]
[393959682,1763130632828,-206.38678929,0.00028505,2]
[393959683,1763130632838,-462.82035804,0.00029182,2]
[393959684,1763130632847,-204.0,0.00029291,2]
[393959685,1763130632856,-160.0,0.00029745,2]
[393959686,1763130632865,-300.0,0.00029989,2]
[393959687,1763130632875,-158.31,0.0002999,10]
[393959688,1763130632884,-791.56,0.0002999,10]
[393959689,1763130632894,-500.0,0.00029998,2]
[393959690,1763130632904,-316.8330637,0.00029998,2]
[393959691,1763130632913,-500.0,0.00029998,2]
[393959692,1763130632923,-500.0,0.00029998,2]
[393959693,1763130632932,-500.0,0.00029998,2]
[393959694,1763130632942,-500.0,0.00029998,2]
[393959695,1763130632952,-500.0,0.00029998,2]
[393959696,1763130632961,-500.0,0.00029998,2]
[393959697,1763130632970,-500.0,0.00029998,2]
[393959698,1763130632979,-500.0,0.00029998,2]
[393959699,1763130632989,-301.4413312,0.00029998,2]
[393959703,1763130638717,-198.5586688,0.00029998,2]
[393959705,1763130638727,-500.0,0.00029998,2]
[393959707,1763130638737,-500.0,0.00029998,2]
[393959709,1763130638746,-180.65800424,0.00029998,2]
[393959711,1763130638756,-500.0,0.00029998,2]
[393959713,1763130638765,-500.0,0.00029998,2]
[393959715,1763130638774,-500.0,0.00029998,2]
[393959717,1763130638784,-500.0,0.00029998,2]
[393959719,1763130638793,-500.0,0.00029998,2]
[393959721,1763130638802,-159.63406198,0.00029998,2]
[393959723,1763130638812,-254.13436724,0.00029998,2]
[393959725,1763130638824,-500.0,0.00029998,2]
[393959727,1763130638833,-500.0,0.00029998,2]
[393959728,1763130638842,-500.0,0.00029998,2]
[393959730,1763130638852,-411.62867185,0.00029998,2]
[393959732,1763130638861,-500.0,0.00029998,2]
[393959734,1763130638871,-500.0,0.00029998,2]
[393959736,1763130638880,-451.79677029,0.00029998,2]
[393959738,1763130638890,-500.0,0.00029998,2]
[393959740,1763130638899,-500.0,0.00029998,2]
[393959742,1763130638909,-500.0,0.00029998,2]
[393959744,1763130638918,-500.0,0.00029998,2]
[393959746,1763130638928,-500.0,0.00029998,2]
[393959748,1763130638937,-500.0,0.00029998,2]
[393959750,1763130638947,-500.0,0.00029998,2]
[393959752,1763130638956,-500.0,0.00029998,2]
[393959754,1763130638965,-500.0,0.00029998,2]
[393959756,1763130638974,-500.0,0.00029998,2]
[393959758,1763130638984,-500.0,0.00029998,2]
[393959760,1763130638993,-500.0,0.00029998,2]
[393959762,1763130639003,-500.0,0.00029998,2]
[393959764,1763130639013,-500.0,0.00029998,2]
[393959766,1763130639023,-500.0,0.00029998,2]
[393959768,1763130639032,-500.0,0.00029998,2]
[393959770,1763130639041,-500.0,0.00029999,2]
[393959772,1763130639051,-50000.0,0.00029999,2]
[393959774,1763130639060,-500.0,0.00029999,2]
[393959776,1763130639073,-500.0,0.00029999,2]
[393959778,1763130639082,-500.0,0.00029999,2]
[393959780,1763130639091,-187.47639896,0.00029999,2]
[393959782,1763130639100,-500.0,0.00029999,2]
[393959784,1763130639109,-362.61365294,0.00029999,2]
[393959786,1763130639120,-500.0,0.00029999,2]
[393959788,1763130639129,-13739.07233742,0.0003,30]
[393959791,1763130639145,-983.6456745,0.0003,30]
[393959793,1763130639157,-985.04788,0.0003,30]
[393959795,1763130639168,-626.36917242,0.0003,30]
[393959798,1763130639187,-498.142,0.0003,30]
[393959801,1763130639198,-18395.82108254,0.0003,30]
[393959803,1763130639210,-1428.22099713,0.0003,30]
[393959957,1763130640693,-45838.92147036,0.0003,30]
[393959977,1763130640885,-645.88935581,0.0003,30]
[393960051,1763130644266,-3801.87220752,0.0003,30]
[393960052,1763130644277,-2034.34875216,0.0003,30]
[393960068,1763130647118,-59091.51447713,0.0003,30]
[393960070,1763130716161,447.562759,0.00013699,2]
[393960071,1763130716377,447.562759,0.00020187,2]
[393960072,1763130741700,220.7,0.00039563,5]
[393960075,1763130868974,254.0,0.00039563,5]
[393960076,1763130882982,10013.123324,0.00039563,30]
[393960112,1763131215061,17584.07924453,0.00025,2]
[393960113,1763131229676,25000.0,0.0002,2]
[393960114,1763131229702,25000.0,0.0002,2]
[393960115,1763131229732,25000.0,0.0002,2]
[393960116,1763131229757,10000.0,0.0002,2]
[393960117,1763131229780,10000.0,0.0002,2]
[393960118,1763131229802,10000.0,0.0002,2]
[393960119,1763131229824,10000.0,0.0002,2]
[393960120,1763131229849,10000.0,0.0002,2]
[393960121,1763131229873,10000.0,0.0002,2]
[393960122,1763131229897,10000.0,0.0002,2]
[393960123,1763131229920,10000.0,0.0002,2]
[393960124,1763131229941,10000.0,0.0002,2]
[393960125,1763131230102,10000.0,0.0002,2]
[393960126,1763131230127,12920.11328463,0.0002,2]
[393960127,1763131235681,-273.64793421,0.00019999,2]
[393960128,1763131243597,-207.58554506,0.00019999,2]
[393960129,1763131243619,-106.60363263,0.00019999,2]
[393960130,1763131248557,25000.0,0.000195,2]
[393960131,1763131248583,25000.0,0.000195,2]
[393960132,1763131248609,-178.47434018,0.000195,2]
[393960133,1763131254491,-383.49920011,0.000195,2]
[393960134,1763131258581,-178.47434018,0.00019889,2]
[393960135,1763131264116,-121.52565982,0.00019889,2]
[393960136,1763131264139,-95.19301596,0.00019999,2]
[393960137,1763131269510,-261.20648923,0.00019998,2]
[393960138,1763131270876,-38.79351077,0.00019998,2]
[393960139,1763131270901,-261.20648923,0.00019999,2]
[393960140,1763131277012,-36.99686218,0.00019999,2]
[393960141,1763131277037,-361.23396336,0.00019999,2]
[393960142,1763131282248,-358.38830417,0.00019999,2]
[393960143,1763131286524,-141.61169583,0.00019999,2]
[393960144,1763131286551,-45.82802193,0.00019999,2]
[393960145,1763131289319,-92.93801471,0.00019999,2]
[393960146,1763131289340,-265.14901685,0.00019999,2]
[393960149,1763131299958,-234.85098315,0.00019999,2]
[393960150,1763131299981,-56.22994714,0.00019999,2]
[393960151,1763131304327,-97.59960991,0.00019999,2]
[393960152,1763131304352,-166.56589622,0.00019999,2]
[393960153,1763131306789,-285.00156619,0.00019999,2]
[393960154,1763131307547,20072.29,0.000195,3]
[393960155,1763131307572,10000.01,0.000195,3]
[393960156,1763131307598,10000.01,0.000195,3]
[393960157,1763131307622,10000.01,0.000195,3]
[393960158,1763131307647,10000.01,0.000195,3]
[393960159,1763131307671,10000.01,0.000195,3]
[393960160,1763131307696,2073.41,0.000195,3]
[393960161,1763131312126,-48.43253759,0.00019999,2]
[393960162,1763131312153,-451.56746241,0.00019999,2]
[393960163,1763131314468,-48.43253759,0.00019999,2]
[393960164,1763131314496,-112.54239131,0.00019999,2]
[393960165,1763131318009,-169.95691149,0.00019999,2]
[393960166,1763131321631,-217.5006972,0.00019999,2]
[393960167,1763131321657,-222.7118036,0.00019999,2]
[393960168,1763131327283,-248.21039223,0.00019998,2]
[393960169,1763131331059,-51.78960777,0.00019998,2]
[393960170,1763131331083,-203.63309217,0.00019999,2]
[393960171,1763131336698,-73.65510423,0.00019999,2]
[393960172,1763131336726,-113.53318265,0.00019999,2]
[393960173,1763131343217,-283.31640281,0.00019999,2]
[393960174,1763131347028,-181.682031,0.00019999,2]
[393960175,1763131350834,-190.13233747,0.00019999,2]
[393960215,1763131535527,-162.08989597,0.0002,20]
[393960216,1763131537343,-137.91010403,0.0002,20]
[393960217,1763131537365,-170.11,0.0002,20]
[393960218,1763131537386,-162.50658697,0.0002,7]
[393960219,1763131544242,-137.49341303,0.0002,7]
[393960220,1763131544265,-44.58108325,0.00020199,2]
[393960221,1763131550948,-170.11,0.0002,7]
[393960222,1763131550970,-27.6496197,0.0002,2]
[393960224,1763131564861,-400.90115927,0.000198,2]
[393960229,1763131569296,-201.33922103,0.000198,2]
[393960231,1763131572497,-50.36080698,0.000198,2]
[393960232,1763131572538,-272.3503803,0.0002,2]
[393960234,1763131574263,-105.41891675,0.00020199,2]
[393960235,1763131574289,-300.0,0.00020398,2]
[393960236,1763131574313,-300.0,0.00020398,2]
[393960237,1763131574336,-28.84108325,0.00020398,2]
[393960241,1763131581783,297.09,0.0002,20]
[393960242,1763131591760,297.09,0.0002,7]
[393960247,1763131602018,254.65,0.0002,2]
[393960250,1763131609680,8505.75762544,0.00019991,2]
[393960251,1763131609705,164.63512776,0.00019991,2]
[393960256,1763131652554,174.1088072,0.00019991,2]
[393960285,1763131831906,-271.15891675,0.00020398,2]
[393960286,1763131831915,-997.0,0.00020398,2]
[393960287,1763131831925,-596.31744437,0.000204,2]
[393960288,1763131831936,-203.68255563,0.000204,2]
[393960290,1763131831946,-168.49903615,0.00022186,5]
[393960292,1763131831955,-177.0,0.00022199,2]
[393960294,1763131831964,-1200.0,0.00022645,2]
[393960296,1763131831973,-1745.07079022,0.00022646,2]
[393960298,1763131831984,-875.89904586,0.00022646,2]
[393960380,1763131838003,-625.58105007,0.00022646,2]
[393960626,1763131839981,-5423.84186705,0.00022646,2]
[393960627,1763131839991,-194.99524988,0.00024199,2]
[393960628,1763131840003,-9.00475012,0.00024199,2]
[393960629,1763131840013,-1680.0,0.00024706,2]
[393960630,1763131840022,-300.0,0.00024898,2]
[393960631,1763131840033,-300.0,0.00024898,2]
[393960632,1763131840042,-2500.05815945,0.00024898,2]
[393960635,1763131840055,-600.0,0.00024899,2]
[393960637,1763131840064,-500.43470923,0.00024973,2]
[393960639,1763131840073,-501.1549955,0.00024973,2]
[393960640,1763131840083,-500.0,0.00024973,2]
[393960641,1763131840091,-30.5573857,0.00024973,2]
[393960648,1763131840563,-3e-08,0.00024973,2]
[393960649,1763131840575,-469.44261427,0.00024973,2]
[393960650,1763131840584,-202.33675408,0.00024973,2]
[393960670,1763131843146,-297.66324592,0.00024973,2]
[393960671,1763131843155,-559.1409358,0.00024973,2]
[393960672,1763131843164,-500.0,0.00024973,2]
[393960673,1763131843172,-543.10635518,0.00024997,2]
[393960674,1763131843181,-500.0,0.00024997,2]
[393960675,1763131843190,-500.0,0.00024997,2]
[393960676,1763131843199,-500.0,0.00024997,2]
[393960677,1763131843207,-500.0,0.00024997,2]
[393960678,1763131843216,-316.46478582,0.00024997,2]
[393960679,1763131843224,-500.0,0.00024998,2]
[393960680,1763131843233,-50000.0,0.00024998,2]
[393960681,1763131843242,-500.0,0.00025272,2]
[393960682,1763131843251,-8670.3927532,0.00025302,2]
[393960683,1763131843260,-300.0,0.00025498,20]
[393960684,1763131843269,-300.0,0.00025498,20]
[393960685,1763131843278,-300.0,0.00025498,20]
[393960686,1763131843287,-300.0,0.00025498,20]
[393960687,1763131843296,-1000.0,0.00025521,2]
[393960688,1763131843304,-500.0,0.00025546,2]
[393960689,1763131843313,-613.23192408,0.0002582,2]
[393960690,1763131843326,-14.95370745,0.0002582,2]
[393960691,1763131843337,-370.36734111,0.00025831,2]
[393960692,1763131843346,-509.04784384,0.00026068,2]
[393960693,1763131843355,-231.0,0.00026199,2]
[393960694,1763131843365,-228.85208338,0.0002625,2]
[393960695,1763131843374,-447.562759,0.00026676,2]
[393960696,1763131843384,-370.36734111,0.00026906,2]
[393960697,1763131843393,-720.0,0.00026955,2]
[393960698,1763131843402,-3707.16155585,0.00027957,2]
[393960699,1763131843425,-4963.23119735,0.00027957,2]
[393960702,1763131843434,-370.36734111,0.0002798,2]
[393960704,1763131843444,-320.0,0.00028,2]
[393960706,1763131843453,-216.79404922,0.00028199,2]
[393960708,1763131843463,-2831.6270513,0.00028331,2]
[393960711,1763131843472,-500.0,0.00028962,5]
[393960714,1763131843481,-500.0,0.00028962,5]
[393960717,1763131843491,-466.04735602,0.00028965,5]
[393960719,1763131843500,-3964.2144558,0.0002899,2]
[393960721,1763131843509,-370.36734111,0.00029054,2]
[393960723,1763131843518,-297.02361525,0.00029909,30]
[393960725,1763131843528,-457.44,0.0002997,3]
[393960727,1763131843537,-12689.3107906,0.0002997,2]
[393960729,1763131843546,-2921.54658716,0.0002997,2]
[393960741,1763131846356,-179.56821827,0.00024723,2]
[393960742,1763131846366,-505.35137292,0.0002997,2]
[393960744,1763131894191,500.0,0.00019998,2]
[393960950,1763132466804,1000.0,0.00039552,120]
[393960975,1763132474682,1000.0,0.00039552,120]
[393960976,1763132479625,1000.0,0.00039552,120]
[393960977,1763132484259,1000.0,0.00039552,120]
[393960978,1763132491512,1000.0,0.00039552,120]
[393960982,1763132504521,1000.0,0.00039552,120]
[393961006,1763132548875,2000.0,0.00022561,2]
[393961007,1763132706917,151.0,0.00039552,120]
[393961008,1763132707038,250.0,0.00039552,120]
[393961009,1763132707152,414.0,0.00039552,120]
[393961010,1763132707250,151.0,0.00039552,120]
[393961011,1763132707476,151.0,0.00039552,120]
[393961012,1763132707611,151.0,0.00039552,120]
[393961013,1763132707715,250.0,0.00039552,120]
[393961014,1763132707817,250.0,0.00039552,120]
[393961015,1763132707931,151.0,0.00039552,120]
[393961016,1763132708238,429.318,0.00039552,120]
[393961017,1763132708350,151.0,0.00039552,120]
[393961018,1763132708477,151.0,0.00039552,120]
[393961019,1763132708599,250.0,0.00039552,120]
[393961020,1763132708706,250.0,0.00039552,120]
[393961021,1763132708813,156.587,0.00039552,120]
[393961022,1763132708926,151.0,0.00039552,120]
[393961023,1763132709058,445.202766,0.00039552,120]
[393961024,1763132709176,151.0,0.00039552,120]
[393961025,1763132709300,151.0,0.00039552,120]
[393961026,1763132709404,250.0,0.00039552,120]
[393961027,1763132709519,250.0,0.00039552,120]
[393961028,1763132709634,151.0,0.00039552,120]
[393961029,1763132709738,162.380719,0.00039552,120]
[393961030,1763132709844,461.67526834,0.00039552,120]
[393961031,1763132709952,151.0,0.00039552,120]
[393961032,1763132710064,151.0,0.00039552,120]
[393961033,1763132710165,250.0,0.00039552,120]
[393961034,1763132710269,250.0,0.00039552,120]
[393961035,1763132710385,151.0,0.00039552,120]
[393961036,1763132710488,168.3888056,0.00039552,120]
[393961037,1763132710577,478.75725327,0.00039552,120]
[393961038,1763132710669,151.0,0.00039552,120]
[393961039,1763132710773,151.0,0.00039552,120]
[393961040,1763132710884,250.0,0.00039552,120]
[393961041,1763132710986,250.0,0.00039552,120]
[393961042,1763132711095,174.61919141,0.00039552,120]
[393961043,1763132711195,496.47127164,0.00039552,120]
[393961044,1763132711291,151.0,0.00039552,120]
[393961045,1763132711391,151.0,0.00039552,120]
[393961046,1763132711496,151.0,0.00039552,120]
[393961047,1763132711609,250.0,0.00039552,120]
[393961048,1763132711715,250.0,0.00039552,120]
[393961049,1763132711824,181.08010149,0.00039552,120]
[393961050,1763132711921,151.0,0.00039552,120]
[393961051,1763132712017,151.0,0.00039552,120]
[393961052,1763132712117,514.84070869,0.00039552,120]
[393961053,1763132712218,151.0,0.00039552,120]
[393961054,1763132712313,250.0,0.00039552,120]
[393961055,1763132712410,181.08010149,0.00039552,120]
[393961056,1763132712503,151.0,0.00039552,120]
[393961057,1763132712597,514.84070869,0.00039552,120]
[393961058,1763132712686,250.0,0.00039552,120]
[393961059,1763132712807,250.0,0.00039552,120]
[393961060,1763132713497,250.0,0.00039552,120]
[393961061,1763132715005,151.0,0.00039552,120]
[393961062,1763132715685,250.0,0.00039552,120]
[393961063,1763132715835,151.0,0.00039552,120]
[393961064,1763132716152,155.7019265,0.00039552,120]
[393961065,1763132716502,250.0,0.00039552,120]
[393961066,1763132716611,151.0,0.00039552,120]
[393961067,1763132716921,151.0,0.00039552,120]
[393961068,1763132717143,250.0,0.00039552,120]
[393961069,1763132717249,151.0,0.00039552,120]
[393961070,1763132717542,156.587,0.00039552,120]
[393961071,1763132717795,250.0,0.00039552,120]
[393961072,1763132718204,162.380719,0.00039552,120]
[393961073,1763132718611,250.0,0.00039552,120]
[393961074,1763132718751,250.0,0.00039552,120]
[393961075,1763132718856,168.3888056,0.00039552,120]
[393961076,1763132719278,250.0,0.00039552,120]
[393961077,1763132719406,250.0,0.00039552,120]
[393961078,1763132719529,174.61919141,0.00039552,120]
[393961079,1763132720051,250.0,0.00039552,120]
[393961080,1763132720164,181.08010149,0.00039552,120]
[393961081,1763132720275,250.0,0.00039552,120]
[393961082,1763132720449,151.0,0.00039552,120]
[393961083,1763132720670,250.0,0.00039552,120]
[393961084,1763132720871,181.08010149,0.00039552,120]
[393961085,1763132721346,151.0,0.00039552,120]
[393961086,1763132721450,250.0,0.00039552,120]
[393961087,1763132722055,250.0,0.00039552,120]
[393961088,1763132722726,250.0,0.00039552,120]
[393961089,1763132723795,250.0,0.00039552,120]
[393961090,1763132724404,250.0,0.00039552,120]
[393961091,1763132725121,250.0,0.00039552,120]
[393961092,1763132725730,250.0,0.00039552,120]
[393961093,1763132726346,250.0,0.00039552,120]
[393961094,1763132727237,250.0,0.00039552,120]
[393961095,1763132727856,250.0,0.00039552,120]
[393961099,1763132991793,200.0,0.00022562,2]
[393961100,1763133015394,9800.01,0.00022,2]
[393961101,1763133015419,10000.01,0.00022,2]
[393961102,1763133015447,10000.01,0.00022,2]
[393961103,1763133015471,10000.01,0.00022,2]
[393961104,1763133015497,10000.01,0.00022,2]
[393961105,1763133015521,10000.01,0.00022,2]
[393961106,1763133015549,39260.05,0.00022,2]
[393961166,1763133032215,-2000.0,0.00023934,2]
[393961168,1763133032226,-1214.0,0.00023934,2]
[393961170,1763133032236,-150.0,0.00023959,2]
[393961172,1763133032245,-170.2872362,0.00024471,2]
[393961174,1763133032254,-162.08989597,0.00024622,2]
[393961176,1763133032263,-177.0,0.00025959,2]
[393961178,1763133032272,-34.62286783,0.000275,5]
[393961253,1763133038487,-446.94503474,0.00026103,2]
[393961256,1763133038501,-317.73306456,0.00026103,2]
[393961258,1763133038511,-300.0,0.00027385,30]
[393961260,1763133038521,-300.0,0.00027385,30]
[393961262,1763133038531,-300.0,0.00027385,30]
[393961263,1763133038541,-300.0,0.00027385,30]
[393961265,1763133038551,-300.0,0.00027385,30]
[393961268,1763133038560,-300.0,0.00027385,30]
[393961269,1763133038570,-300.0,0.00027385,30]
[393961272,1763133038580,-300.0,0.00027385,30]
[393961274,1763133038589,-174.53693544,0.00027385,30]
[393961279,1763133038612,-125.46306456,0.00027385,30]
[393961281,1763133038621,-300.0,0.00027385,30]
[393961283,1763133038631,-474.50428335,0.000275,5]
[393961285,1763133038640,-312.77824887,0.00027553,2]
[393961287,1763133038649,-204.0,0.00027959,2]
[393961289,1763133038659,-286.02716579,0.00028041,2]
[393961291,1763133038668,-326.88818947,0.00028041,2]
[393961293,1763133038678,-844.8090703,0.00028116,2]
[393961295,1763133038687,-300.0,0.00028498,2]
[393961297,1763133038697,-239.84577922,0.00028499,2]
[393961299,1763133038707,-2743.1286223,0.0002978,2]
[393961301,1763133038716,-505.54099924,0.00029844,2]
[393961303,1763133038726,-845.35,0.00029866,10]